bitfinex/quotes_ETHUSD_20251107
["timestamp","ask_amount","ask_price","bid_price","bid_amount"]
[1762536979431,0.1897,3387.9,3386.4,0.4923]
[1762536979673,0.4763,3387.8,3386.4,1.2813]
[1762536979845,2.95218944,3387.4,3386.4,1.2813]
[1762536980175,2.95204902,3387.5,3386.7,0.405504]
[1762536980330,2.95185536,3387.7,3386.7,0.405504]
[1762536980331,2.95211997,3387.4,3386.7,0.405504]
[1762536980530,2.95219129,3387.4,3386.5,0.4923]
[1762536980754,0.666,3387.9,3386.3,0.1776]
[1762536980962,2.9522067,3387.3,3386.3,0.1776]
[1762536981177,0.1897,3387.9,3386.5,0.405504]
[1762536981385,2.9520348,3387.5,3386.5,0.405504]
[1762536981665,0.1897,3387.9,3386.5,0.405504]
[1762536981666,2.95217827,3387.4,3386.5,0.4923]
[1762536981871,2.9518659,3387.7,3386.5,0.4923]
[1762536982042,0.666,3387.9,3386.5,0.4923]
[1762536982437,2.9522256,3387.3,3386.4,0.405504]
[1762536982868,2.9522256,3387.3,3387.2,0.1472]
[1762536983576,0.4763,3387.8,3387.2,0.1472]
[1762536983758,0.4763,3387.8,3386.4,0.405504]
[1762536983759,0.4763,3387.3,3385.5,0.4923]
[1762536983979,2.95304249,3386.4,3385.5,0.4923]
[1762536984290,2.9534859,3385.9,3385.4,0.1779]
[1762536984474,0.1847,3385.6,3384.6,0.1826]
[1762536984673,0.1847,3385.6,3384.3,0.001]
[1762536984992,2.95403521,3385.2,3384.3,0.001]
[1762536985491,3.43033521,3385.2,3384.3,0.001]
[1762536985691,2.95403521,3385.2,3384.3,0.001]
[1762536985848,0.1847,3385.6,3384.3,0.001]
[1762536986184,0.1847,3385.9,3384.6,0.405504]
[1762536986384,2.95384507,3385.5,3384.6,0.405504]
[1762536986585,2.95384507,3385.5,3384.3,0.406504]
[1762536986786,0.4763,3385.4,3384.3,0.406504]
[1762536987084,2.95403521,3385.2,3384.3,0.001]
[1762536987394,3.43023568,3385.4,3384.3,0.0305482]
[1762536987395,0.4763,3385.4,3384.3,0.0305482]
[1762536987602,3.43016104,3385.4,3384.3,0.001]
[1762536987892,2.95403521,3385.2,3384.3,0.001]
[1762536988251,3.43033521,3385.2,3384.3,0.001]
[1762536988879,2.95403521,3385.2,3384.3,0.001]
[1762536989079,3.43033521,3385.2,3384.3,0.001]
[1762536989503,0.4763,3385.6,3384.4,0.405504]
[1762536989714,3.13819488,3385.9,3384.6,0.897804]
[1762536989715,0.1847,3385.9,3384.6,0.897804]
[1762536989916,0.4763,3386.2,3384.6,0.897804]
[1762536989917,2.95361483,3385.7,3384.6,0.897804]
[1762536990117,2.95332985,3386.1,3384.6,0.897804]
[1762536990278,0.4763,3386.2,3385.2,0.1779]
[1762536990485,2.95360978,3385.7,3385.2,0.1779]
[1762536990679,0.4763,3386.2,3384.8,0.1779]
[1762536990880,0.1847,3385.8,3384.9,0.405504]
[1762536991081,0.4763,3386.2,3385.0,0.02954209]
[1762536991422,2.95384153,3385.5,3384.9,0.405504]
[1762536991619,2.95383718,3385.5,3384.9,0.405504]
[1762536991919,0.1847,3385.8,3384.9,0.405504]
[1762536992087,2.95396216,3385.3,3384.9,0.405504]
[1762536992287,2.95389493,3385.4,3384.9,0.405504]
[1762536992521,2.95395234,3385.3,3384.4,0.405504]
[1762536992722,2.95395234,3385.3,3384.3,0.4933]
[1762536992723,2.95403521,3385.2,3384.3,0.001]
[1762536992907,3.43553521,3385.2,3384.3,0.001]
[1762536993098,4.07447632,3385.2,3384.3,0.001]
[1762536993784,4.07447632,3385.2,3385.0,0.1472]
[1762536993981,2.95473348,3384.4,3384.3,0.001]
[1762536994380,3.43623348,3384.4,3384.3,0.1482]
[1762536994612,2.9549081,3384.2,3384.1,1e-08]
[1762536994920,3.1021081,3384.2,3384.1,1e-08]
[1762536995120,4.23744226,3384.2,3384.1,1e-08]
[1762536995323,4.09024226,3384.2,3384.1,1e-08]
[1762536997513,2.95534474,3383.7,3383.6,0.1482]
[1762536997711,3.63034474,3383.7,3383.6,0.001]
[1762536998357,2.95551943,3383.5,3383.1,1e-08]
[1762536998529,2.9557815,3383.2,3383.1,1e-08]
[1762536998867,2.9557815,3383.2,3382.1,0.005]
[1762536998868,2.95636847,3382.6,3382.1,0.005]
[1762536999070,3.14954363,3382.9,3382.1,0.005]
[1762536999071,0.1935,3382.9,3382.1,0.005]
[1762536999272,2.95636985,3382.6,3382.5,0.1472]
[1762536999735,2.9563058,3382.6,3382.5,0.1472]
[1762537000348,3.4337058,3382.6,3382.5,0.1472]
[1762537000761,2.9563058,3382.6,3382.5,0.1472]
[1762537000925,0.1935,3383.7,3382.5,0.6456]
[1762537001126,0.4774,3384.2,3382.1,0.005]
[1762537001127,3.43235859,3384.2,3382.6,1.081804]
[1762537001480,0.4774,3384.2,3382.6,1.081804]
[1762537001655,2.9552412,3383.9,3382.8,0.405504]
[1762537001865,0.4774,3384.2,3382.8,0.405504]
[1762537002029,0.4774,3384.2,3383.0,0.405504]
[1762537002220,2.95532819,3383.8,3383.0,0.405504]
[1762537002425,2.95545377,3383.6,3383.0,0.405504]
[1762537002626,0.1924,3384.7,3383.2,0.405504]
[1762537002826,0.6698,3384.7,3383.2,0.405504]
[1762537003028,2.95488575,3384.3,3383.2,0.405504]
[1762537003266,2.95505501,3384.1,3383.3,0.405504]
[1762537003579,2.95508774,3384.0,3383.3,0.405504]
[1762537003743,0.6698,3384.7,3383.3,0.405504]
[1762537003948,1.05206316,3384.7,3383.3,0.405504]
[1762537004148,0.6698,3384.7,3383.3,0.4209]
[1762537004495,0.1924,3384.7,3383.3,0.4209]
[1762537004646,0.005,3384.9,3383.5,1.665216]
[1762537004847,0.005,3384.9,3383.7,1.665216]
[1762537005080,0.005,3384.9,3383.9,0.405504]
[1762537005251,2.95444022,3384.8,3383.9,0.405504]
[1762537005452,0.005,3384.9,3383.9,0.405504]
[1762537005642,0.005,3384.9,3383.6,0.405504]
[1762537005954,2.9550099,3384.1,3383.6,0.405504]
[1762537006338,0.4824,3384.9,3383.6,0.818104]
[1762537006339,0.1924,3384.5,3383.6,0.818104]
[1762537006538,0.1924,3384.5,3383.5,0.1801]
[1762537006775,2.95473348,3384.4,3383.5,0.1801]
[1762537006937,2.95534474,3383.7,3383.1,0.4118]
[1762537007136,2.95540393,3383.7,3383.1,0.4118]
[1762537007342,2.95506248,3384.1,3383.1,0.4118]
[1762537007586,0.1924,3384.5,3383.1,0.4118]
[1762537007737,0.1974,3384.9,3383.3,1.665216]
[1762537007941,2.9543843,3384.8,3383.5,0.405504]
[1762537008181,2.9543843,3384.8,3383.1,0.4118]
[1762537008182,0.36291843,3384.8,3383.3,0.405504]
[1762537008353,0.1974,3384.9,3383.5,1.665216]
[1762537008682,2.95439194,3384.8,3383.8,0.405504]
[1762537008883,0.005,3384.9,3384.0,0.405504]
[1762537009083,2.95453319,3384.7,3383.8,0.405504]
[1762537009286,0.1974,3384.9,3383.8,0.405504]
[1762537009440,0.1974,3384.9,3383.8,0.4984]
[1762537009441,0.005,3384.9,3383.8,0.4984]
[1762537009780,0.005,3384.9,3383.5,0.405504]
[1762537009781,0.97071276,3384.9,3383.5,0.405504]
[1762537010082,0.97071276,3384.9,3383.3,0.405504]
[1762537010283,2.95500052,3384.1,3383.3,0.405504]
[1762537010489,0.6748,3384.9,3383.5,0.405504]
[1762537010642,2.95477968,3384.4,3383.5,0.405504]
[1762537010849,2.9543843,3384.8,3383.5,0.405504]
[1762537011043,2.95456446,3384.6,3384.3,0.1472]
[1762537011287,2.95456446,3384.6,3383.7,1.665216]
[1762537011288,2.95456446,3384.6,3383.7,0.405504]
[1762537011445,2.95480038,3384.4,3383.7,0.405504]
[1762537011771,2.95468259,3384.5,3383.7,0.405504]
[1762537012279,2.95466618,3384.5,3383.6,0.4984]
[1762537012483,0.1974,3384.9,3384.4,0.1472]
[1762537012484,2.95443566,3384.8,3384.4,0.1472]
[1762537012655,0.1974,3384.9,3384.2,0.1801]
[1762537012656,2.95447736,3384.7,3384.2,0.1801]
[1762537012862,2.95457394,3384.6,3384.2,0.1801]
[1762537013181,0.005,3384.9,3384.6,0.1472]
[1762537013587,0.005,3384.9,3384.7,0.405504]
[1762537013744,0.005,3384.9,3384.8,0.1472]
[1762537013945,0.005,3384.9,3384.8,1.051104]
[1762537014186,0.005,3384.9,3384.8,8.55343584]
[1762537014381,0.005,3384.9,3384.8,0.1472]
[1762537014684,0.005,3384.9,3384.8,0.903904]
[1762537014867,0.005,3384.9,3384.8,0.405504]
[1762537015225,0.005,3384.9,3384.1,0.405504]
[1762537015394,0.002,3384.8,3384.1,0.405504]
[1762537015748,2.95638517,3384.8,3384.1,0.405504]
[1762537016063,2.95638517,3384.8,3384.0,0.1801]
[1762537016064,0.002,3384.8,3384.0,0.1801]
[1762537016260,0.002,3384.8,3382.8,0.001]
[1762537016261,0.4774,3384.7,3383.6,0.1801]
[1762537016570,0.4774,3384.7,3382.8,0.001]
[1762537016571,2.95464618,3384.5,3382.8,0.001]
[1762537016769,2.95523465,3383.9,3382.9,2.98079]
[1762537017092,0.4774,3384.4,3383.0,0.02955956]
[1762537017385,2.95492969,3384.2,3383.3,0.405504]
[1762537017588,2.95492969,3384.2,3383.1,0.405504]
[1762537017746,0.002,3384.8,3383.3,0.405504]
[1762537018088,0.4794,3384.8,3383.3,0.405504]
[1762537018256,2.95497386,3384.2,3383.5,0.405504]
[1762537018456,0.4774,3384.7,3383.5,0.405504]
[1762537018770,0.002,3384.8,3383.6,6.128506]
[1762537018986,2.95480861,3384.4,3383.8,0.405504]
[1762537019188,0.002,3384.8,3383.8,0.405504]
[1762537019618,2.95452232,3384.7,3383.8,0.405504]
[1762537019768,0.002,3384.8,3383.8,0.903904]
[1762537020108,0.002,3384.8,3384.0,1.665216]
[1762537020268,0.002,3384.8,3384.2,1.665216]
[1762537020466,0.002,3384.8,3384.4,1.665216]
[1762537020808,0.002,3384.8,3384.7,0.405504]
[1762537020964,0.002,3384.8,3384.7,1.665216]
[1762537021171,0.002,3384.8,3384.7,0.405504]
[1762537021905,0.002,3384.8,3383.7,1.4645]
[1762537022214,0.002,3384.8,3384.1,0.405504]
[1762537022566,0.002,3384.8,3384.1,0.875104]
[1762537022796,0.002,3384.8,3383.8,0.405504]
[1762537022980,0.002,3384.8,3384.0,0.405504]
[1762537023182,0.002,3384.8,3384.2,1.665216]
[1762537023398,0.002,3384.8,3384.4,1.665216]
[1762537023622,0.002,3384.8,3384.6,0.405504]
[1762537023818,0.002,3384.8,3384.7,2.699478]
[1762537024170,0.002,3384.8,3384.7,3.169078]
[1762537024389,0.002,3384.8,3384.7,3.316278]
[1762537024908,0.002,3384.8,3384.7,0.1472]
[1762537025683,0.002,3384.8,3384.7,1.022304]
[1762537026544,0.005,3384.9,3384.8,1.665216]
[1762537026752,0.002,3385.1,3384.8,21.511557]
[1762537026892,0.002,3385.1,3385.0,1.665216]
[1762537027096,0.002,3385.1,3385.0,0.405504]
[1762537027330,0.002,3385.1,3384.8,0.1801]
[1762537027642,0.002,3385.1,3384.6,0.1801]
[1762537027806,0.002,3385.1,3384.7,0.405504]
[1762537028140,0.002,3385.1,3384.2,0.1801]
[1762537028141,2.95618532,3385.1,3384.2,0.1801]
[1762537028306,0.77481853,3385.1,3384.2,0.1801]
[1762537028508,0.1982,3384.3,3383.3,0.1801]
[1762537028709,2.95514753,3384.0,3383.3,0.1801]
[1762537028920,2.95517354,3383.9,3383.3,0.1801]
[1762537029122,0.1982,3384.3,3383.1,0.005]
[1762537029322,2.95499541,3384.1,3383.1,0.005]
[1762537029639,0.4772,3384.2,3383.1,0.005]
[1762537029932,2.95566169,3383.4,3383.1,0.005]
[1762537030292,0.4772,3384.1,3383.1,0.005]
[1762537030494,2.34538308,3387.4,3383.1,0.005]
[1762537030495,0.1982,3384.6,3383.4,0.405504]
[1762537030727,0.1982,3384.6,3383.4,1.665216]
[1762537030914,2.95501227,3384.1,3383.4,1.665216]
[1762537031440,0.1982,3384.6,3383.4,1.665216]
[1762537031441,0.6754,3384.6,3383.4,1.665216]
[1762537031650,0.4772,3384.5,3383.4,1.665216]
[1762537031815,0.84018162,3384.5,3383.1,0.005]
[1762537032005,2.95548882,3383.6,3383.1,0.005]
[1762537032200,2.95533621,3383.8,3383.1,0.005]
[1762537032429,0.4772,3384.4,3383.1,0.005]
[1762537032430,3.43197268,3384.4,3383.1,0.005]
[1762537032734,2.95519712,3383.9,3383.1,0.005]
[1762537032939,0.4792,3385.1,3383.9,0.405504]
[1762537033142,0.002,3384.9,3384.3,0.405504]
[1762537033325,0.002,3384.9,3384.8,0.405504]
[1762537033499,0.002,3384.9,3384.8,4.804616]
[1762537033704,0.002,3384.9,3384.8,2.314916]
[1762537033915,0.002,3384.9,3384.8,5.638677]
[1762537034551,0.002,3384.9,3384.8,1.845316]
[1762537034776,0.002,3384.9,3384.5,0.1801]
[1762537034977,0.002,3384.9,3384.7,1.665216]
[1762537035275,0.002,3384.9,3384.8,6.025211]
[1762537035435,0.002,3385.6,3385.2,0.405504]
[1762537035638,0.002,3385.6,3385.5,8.44421977]
[1762537035835,0.005,3385.9,3385.6,1.665216]
[1762537036073,0.005,3385.9,3385.8,0.405504]
[1762537036285,0.005,3385.9,3385.8,8.942776]
[1762537036462,0.005,3385.9,3385.8,4.61575]
[1762537036643,0.005,3385.9,3385.8,15.658241]
[1762537036979,0.005,3385.9,3385.8,11.325192]
[1762537037272,0.005,3386.9,3386.0,0.405504]
[1762537037478,0.005,3386.9,3386.2,8.44421977]
[1762537037638,0.005,3386.9,3386.8,0.552704]
[1762537037836,0.005,3386.9,3386.8,0.405504]
[1762537038462,0.4822,3386.9,3385.8,1.259712]
[1762537038663,2.95279347,3386.7,3386.0,1.259712]
[1762537038840,0.005,3386.9,3385.8,1.729312]
[1762537039047,0.4772,3386.8,3385.7,6.77900377]
[1762537039248,2.95371624,3385.6,3384.7,6.77900377]
[1762537039455,2.95397694,3385.3,3384.5,0.1801]
[1762537039851,2.95392961,3385.4,3384.5,0.1801]
[1762537040052,0.4772,3385.7,3384.7,0.405504]
[1762537040310,3.43080309,3385.7,3384.5,0.1801]
[1762537040480,0.1982,3385.8,3384.7,8.03871577]
[1762537040656,0.1982,3386.3,3385.4,0.405504]
[1762537040858,0.4772,3386.7,3385.6,1.665216]
[1762537041057,2.95304416,3386.4,3385.6,0.405504]
[1762537041612,0.4772,3386.7,3385.7,4.307237]
[1762537041819,0.4772,3386.7,3385.6,0.405504]
[1762537042190,2.95308086,3386.3,3385.6,0.405504]
[1762537042511,2.95316283,3386.2,3385.1,0.405504]
[1762537042811,2.95305051,3386.4,3385.3,0.405504]
[1762537042973,2.71461661,3386.5,3385.5,0.405504]
[1762537043169,2.95308469,3386.3,3385.5,0.405504]
[1762537043410,2.95300179,3386.4,3385.7,0.405504]
[1762537043620,2.95316585,3386.2,3385.4,0.405504]
[1762537043819,2.95316585,3386.2,3385.4,3.22976603]
[1762537043987,2.95285929,3386.6,3385.5,6.974388]
[1762537044194,0.4772,3386.7,3385.5,3.004303]
[1762537044489,0.4772,3386.7,3385.4,0.40154603]
[1762537044686,0.84050051,3386.7,3385.4,0.40154603]
[1762537044892,0.4772,3386.7,3385.4,0.40154603]
[1762537045089,2.95281403,3386.6,3385.4,0.40154603]
[1762537045301,0.4772,3386.7,3385.4,0.40154603]
[1762537045784,2.95293242,3386.5,3385.4,0.40154603]
[1762537045983,2.95304157,3386.4,3385.5,0.02953773]
[1762537046223,0.005,3386.9,3385.8,0.405504]
[1762537046718,0.4822,3386.9,3385.8,0.405504]
[1762537046920,2.95326303,3386.1,3385.4,0.405504]
[1762537047086,2.95325455,3386.1,3385.4,0.405504]
[1762537047280,2.95307562,3386.3,3385.4,0.405504]
[1762537047485,2.95321599,3386.2,3385.4,0.405504]
[1762537047703,2.95326296,3386.1,3385.4,0.405504]
[1762537047914,2.95302237,3386.4,3385.4,0.405504]
[1762537047915,2.95318341,3386.2,3386.1,0.552704]
[1762537048104,0.4772,3386.7,3386.2,0.405504]
[1762537048311,0.4772,3386.7,3385.3,1.2526]
[1762537048312,2.95284232,3386.6,3385.4,1.665216]
[1762537048491,2.95263965,3386.8,3386.7,0.405504]
[1762537049107,0.005,3386.9,3386.7,0.405504]
[1762537049309,0.005,3386.9,3386.8,0.552704]
[1762537049830,0.005,3386.9,3386.8,21.42738177]
[1762537050004,0.005,3386.9,3386.8,13.00567877]
[1762537050340,0.007,3387.9,3386.9,1.665216]
[1762537050634,0.007,3387.9,3387.4,0.585604]
[1762537050837,3.15688192,3387.9,3387.4,0.405504]
[1762537051044,0.2052,3387.9,3387.4,0.405504]
[1762537051198,2.95184065,3387.8,3387.4,0.405504]
[1762537051398,2.95402952,3387.5,3387.4,0.405504]
[1762537051638,0.002,3387.5,3387.4,0.405504]
[1762537052603,0.002,3387.5,3387.4,0.861904]
[1762537052940,0.007,3387.9,3387.5,1.665216]
[1762537053123,0.007,3387.9,3387.7,0.405504]
[1762537053300,0.007,3387.9,3387.3,0.405504]
[1762537053496,0.189,3387.9,3387.3,0.405504]
[1762537053845,0.007,3387.9,3387.5,1.665216]
[1762537053998,0.007,3387.9,3387.5,0.405504]
[1762537054210,0.002,3387.6,3387.3,0.405504]
[1762537054757,0.002,3387.6,3386.7,0.1801]
[1762537054758,0.002,3387.6,3386.8,0.405504]
[1762537054961,0.002,3387.6,3387.0,0.405504]
[1762537055324,0.002,3387.6,3387.2,1.665216]
[1762537055718,0.002,3387.6,3387.4,0.405504]
[1762537055920,0.002,3387.6,3387.3,0.4564]
[1762537055921,0.002,3387.6,3387.3,0.405504]
[1762537056211,0.002,3387.6,3387.5,0.405504]
[1762537057156,0.002,3387.6,3387.3,0.405504]
[1762537057451,0.002,3387.6,3387.4,0.02952116]
[1762537057651,0.002,3387.6,3387.5,1.665216]
[1762537057857,0.007,3387.9,3387.5,16.302678]
[1762537058054,0.007,3387.9,3387.7,8.44421977]
[1762537058216,0.007,3387.9,3387.8,8.315316]
[1762537058414,0.007,3387.9,3387.8,1.665216]
[1762537058661,0.007,3387.9,3385.6,3.56916288]
[1762537058662,2.95217782,3387.4,3386.3,7.23540377]
[1762537058815,0.4904,3387.3,3386.1,0.179]
[1762537059021,0.4904,3387.3,3386.2,3.533926]
[1762537059242,0.4904,3387.8,3386.4,1.259712]
[1762537059576,0.189,3387.9,3386.9,1.665216]
[1762537059761,0.189,3387.9,3387.1,0.405504]
[1762537059965,0.189,3387.9,3387.8,0.1472]
[1762537059966,3.14068197,3387.9,3387.8,0.1472]
[1762537060640,3.63628197,3387.9,3387.8,0.1472]
[1762537061042,4.29526802,3387.9,3387.8,0.1472]
[1762537061586,0.007,3387.9,3387.8,0.1472]
[1762537061766,0.007,3387.9,3387.1,0.1801]
[1762537061767,0.007,3387.9,3387.2,1.2160269]
[1762537062076,0.007,3387.9,3387.4,0.405504]
[1762537062288,0.191,3387.9,3386.9,6.77900377]
[1762537062441,0.191,3387.9,3386.1,0.179]
[1762537062442,2.95234371,3387.2,3386.1,1.438712]
[1762537062642,2.95234371,3387.2,3385.6,2.95461655]
[1762537062643,0.4956,3387.8,3385.7,6.77900377]
[1762537062842,2.95194237,3387.6,3385.7,7.24290377]
[1762537063062,0.191,3387.9,3385.6,0.782]
[1762537063063,0.191,3387.9,3386.2,6.77900377]
[1762537063292,0.4956,3387.8,3386.3,1.259712]
[1762537063456,0.4956,3387.8,3386.4,0.43503388]
[1762537063659,2.95185524,3387.7,3386.4,0.405504]
[1762537063872,2.95261599,3386.9,3386.4,0.405504]
[1762537064195,0.4956,3387.6,3386.4,0.405504]
[1762537064364,2.95261635,3386.9,3386.4,0.405504]
[1762537064565,2.95267634,3386.8,3386.4,0.405504]
[1762537064760,0.4956,3387.5,3386.4,0.405504]
[1762537065089,0.184,3386.9,3385.4,6.77900377]
[1762537065400,3.13659134,3386.9,3385.7,2.281805]
[1762537065700,2.9530699,3386.4,3385.7,2.164583]
[1762537065853,0.4956,3386.8,3385.8,1.665216]
[1762537066193,2.95295514,3386.5,3385.6,0.406504]
[1762537066485,2.95300254,3386.4,3385.8,1.665216]
[1762537066790,2.95332009,3386.1,3385.6,0.001]
[1762537067087,2.95327803,3386.1,3385.6,0.001]
[1762537067260,0.184,3386.3,3385.6,0.001]
[1762537067459,0.184,3386.9,3385.7,7.655345]
[1762537067460,0.184,3386.6,3385.7,7.655345]
[1762537067693,2.95290122,3386.5,3385.6,0.001]
[1762537067862,2.95349045,3385.9,3385.6,0.001]
[1762537068064,2.95351262,3385.8,3385.6,0.001]
[1762537068252,2.95339597,3386.0,3385.6,0.001]
[1762537068458,2.95350162,3385.9,3385.6,0.001]
[1762537068654,2.95347434,3385.9,3385.6,0.001]
[1762537068871,2.95351542,3385.8,3385.6,0.001]
[1762537069067,2.95307562,3386.3,3385.6,0.001]
[1762537069276,2.95359896,3385.7,3385.6,0.001]
[1762537069475,2.95354,3385.8,3385.6,0.001]
[1762537069757,3.4489448,3386.0,3385.6,0.001]
[1762537069758,2.95359896,3385.7,3385.6,0.001]
[1762537069963,0.4956,3385.9,3385.6,0.406504]
[1762537070186,2.95348408,3385.9,3385.6,0.406504]
[1762537070385,2.95359896,3385.7,3385.6,0.406504]
[1762537070696,0.4956,3385.8,3385.6,0.001]
[1762537070861,3.297,3386.6,3385.6,0.001]
[1762537070862,3.44919896,3385.7,3385.6,0.001]
[1762537071053,0.4956,3386.5,3385.6,0.001]
[1762537071254,0.184,3386.6,3385.6,0.001]
[1762537071494,0.184,3386.6,3385.8,1.665216]
[1762537071729,0.184,3386.6,3385.6,0.001]
[1762537071730,3.13681403,3386.6,3386.5,0.552704]
[1762537072215,2.9525491,3387.0,3386.5,0.552704]
[1762537072400,2.95263352,3386.9,3386.5,0.405504]
[1762537072581,2.95264118,3386.8,3386.5,0.405504]
[1762537072918,2.95264118,3386.8,3386.7,0.552704]
[1762537073078,2.95258783,3386.9,3386.8,0.405504]
[1762537073279,2.95263965,3386.8,3386.7,0.1472]
[1762537073691,2.95263965,3386.8,3386.7,0.552704]
[1762537074297,0.4976,3387.6,3386.8,0.405504]
[1762537074586,2.95263965,3386.8,3386.7,0.1472]
[1762537075724,2.95263965,3386.8,3386.7,0.552704]
[1762537075926,0.184,3386.9,3386.8,0.405504]
[1762537076086,3.13655248,3386.9,3386.8,0.405504]
[1762537076482,2.95263965,3386.8,3386.7,0.1472]
[1762537076688,0.184,3386.9,3386.8,0.405504]
[1762537076925,3.13655248,3386.9,3386.8,0.405504]
[1762537077305,3.63215248,3386.9,3386.8,0.405504]
[1762537078086,3.13655248,3386.9,3386.8,0.405504]
[1762537078290,3.63215248,3386.9,3386.8,0.405504]
[1762537078716,0.4956,3387.4,3386.8,0.405504]
[1762537078918,0.002,3387.6,3386.8,0.405504]
[1762537078919,0.002,3387.6,3386.9,0.43502952]
[1762537079125,0.002,3387.6,3387.1,0.405504]
[1762537079341,0.002,3387.6,3387.0,0.1801]
[1762537079545,0.002,3387.6,3387.1,0.405504]
[1762537080047,0.002,3387.6,3387.3,7.18450777]
[1762537080210,0.002,3387.6,3387.5,0.405504]
[1762537080410,0.002,3387.6,3387.3,6.77900377]
[1762537080653,2.95202952,3387.5,3387.4,0.405504]
[1762537080852,0.002,3387.6,3387.5,13.779356]
[1762537081009,0.002,3387.6,3387.3,6.77900377]
[1762537081010,0.007,3387.9,3387.6,15.639204]
[1762537081206,0.007,3387.9,3387.8,0.405504]
[1762537081407,0.007,3387.9,3387.8,1.185504]
[1762537081951,0.007,3387.9,3387.6,0.405504]
[1762537082110,0.007,3387.9,3387.5,1.259712]
[1762537082111,2.95870341,3387.9,3387.5,0.405504]
[1762537082309,0.007,3387.9,3387.6,2.958177]
[1762537082536,0.007,3387.9,3387.7,0.405504]
[1762537082736,0.007,3387.9,3387.7,0.903004]
[1762537082978,0.007,3387.9,3387.8,7.54085468]
[1762537083152,0.007,3387.9,3387.8,5.916926]
[1762537083461,0.007,3387.9,3387.8,15.806909]
[1762537083642,0.002,3388.2,3387.8,15.806909]
[1762537083643,0.002,3388.2,3388.1,8.44421977]
[1762537083812,0.005,3388.9,3388.2,1.665216]
[1762537084013,0.005,3388.9,3388.1,0.1801]
[1762537084260,0.1992,3388.9,3388.1,0.02951506]
[1762537084469,0.1992,3388.9,3387.8,0.1801]
[1762537084664,2.95120914,3388.5,3388.0,1.259712]
[1762537084867,0.1992,3388.9,3387.8,0.1801]
[1762537084868,0.4736,3388.8,3387.8,0.1801]
[1762537085169,2.95156508,3388.1,3387.5,0.1801]
[1762537085333,2.95130658,3388.4,3387.7,1.259712]
[1762537085531,0.4736,3388.8,3387.6,0.779]
[1762537085973,2.9514901,3388.2,3387.6,0.779]
[1762537086128,3.78690143,3388.8,3387.7,0.405504]
[1762537086129,2.95098415,3388.7,3387.7,0.405504]
[1762537086334,2.95142787,3388.2,3387.7,0.405504]
[1762537086530,0.4736,3388.8,3387.8,5.473686]
[1762537086748,0.4736,3388.8,3387.9,0.405504]
[1762537086949,0.4736,3388.8,3387.7,0.405504]
[1762537087155,2.95132627,3388.4,3387.9,0.405504]
[1762537087363,0.1992,3388.9,3387.7,0.903004]
[1762537087541,2.95133383,3388.3,3388.0,0.405504]
[1762537087749,3.42449707,3388.8,3387.7,0.405504]
[1762537088090,0.1942,3387.8,3387.2,0.1801]
[1762537088249,0.1992,3388.9,3387.4,1.259712]
[1762537088250,3.15006833,3388.9,3387.4,1.259712]
[1762537088449,3.15006833,3388.9,3387.2,0.6776]
[1762537088450,3.62366833,3388.9,3387.8,1.665216]
[1762537088643,0.6728,3388.9,3388.0,1.665216]
[1762537088838,2.95117721,3388.5,3388.0,0.405504]
[1762537089045,2.95117721,3388.5,3387.9,0.405504]
[1762537089377,0.005,3388.9,3388.5,0.405504]
[1762537089544,2.95107123,3388.6,3388.5,0.405504]
[1762537089740,2.95124771,3388.4,3387.9,0.405504]
[1762537089946,2.95158579,3388.1,3387.8,0.405504]
[1762537090140,0.4736,3388.7,3388.0,0.1472]
[1762537090378,2.95138667,3388.3,3388.0,0.1472]
[1762537090681,2.95107123,3388.6,3387.5,0.405504]
[1762537090842,2.95133252,3388.3,3388.2,0.1472]
[1762537091040,2.95133252,3388.3,3388.2,0.405504]
[1762537091249,2.95133252,3388.3,3388.2,0.552704]
[1762537091482,3.42493252,3388.3,3388.2,0.552704]
[1762537091683,2.95141963,3388.2,3386.5,0.001]
[1762537091842,3.14701403,3386.6,3386.5,0.001]
[1762537092041,3.62061403,3386.6,3386.5,0.001]
[1762537092277,3.62061403,3386.6,3386.1,1e-08]
[1762537092278,2.95316283,3386.2,3386.1,1e-08]
[1762537092437,3.88643535,3386.2,3386.1,1e-08]
[1762537092641,4.36003535,3386.2,3386.1,1e-08]
[1762537092843,3.14762449,3385.9,3385.1,0.005]
[1762537093076,3.14762449,3385.9,3384.9,0.001]
[1762537093077,2.95403521,3385.2,3384.9,0.001]
[1762537093248,2.95420974,3385.0,3384.9,0.001]
[1762537093647,2.9549081,3384.2,3382.8,0.001]
[1762537093880,3.1491081,3384.2,3382.8,0.001]
[1762537094079,2.9557815,3383.2,3382.8,0.001]
[1762537094295,3.1499815,3383.2,3382.8,0.001]
[1762537094500,3.6235815,3383.2,3382.8,0.001]
[1762537094869,4.2815069,3383.2,3382.8,0.001]
[1762537095210,0.4736,3383.8,3382.8,0.001]
[1762537095357,2.9557815,3383.2,3382.8,0.001]
[1762537095702,0.4736,3383.7,3382.8,0.001]
[1762537095864,2.95532761,3383.8,3383.0,0.405504]
[1762537096252,2.95508274,3384.0,3382.8,0.001]
[1762537096452,2.9557815,3383.2,3382.8,0.001]
[1762537096896,3.4293815,3383.2,3382.8,0.001]
[1762537097290,3.4293815,3383.2,3383.1,1e-08]
[1762537097605,3.4293815,3383.2,3382.8,0.001]
[1762537097606,2.95604363,3382.9,3382.8,0.001]
[1762537098110,3.42964363,3382.9,3382.8,0.001]